bitfinex/quotes_BTCUSD_20240918
["timestamp","ask_amount","ask_price","bid_price","bid_amount"]
[1726686900786,0.493437,60798.0,60797.0,0.00164]
[1726686901027,0.164479,60798.0,60797.0,0.00164]
[1726686901494,0.822395,60798.0,60797.0,0.00164]
[1726686901970,1.07853101,60798.0,60797.0,0.00164]
[1726686902210,1.82516728,60798.0,60797.0,0.00164]
[1726686902460,1.82516728,60798.0,60789.0,0.0017379]
[1726686902461,1.151503,60790.0,60789.0,0.0017379]
[1726686902716,0.493501,60790.0,60789.0,0.0017379]
[1726686902952,0.822502,60790.0,60789.0,0.0017379]
[1726686903194,1.151503,60790.0,60789.0,0.0017379]
[1726686903436,1.40571628,60790.0,60789.0,0.0017379]
[1726686903678,1.40571628,60790.0,60757.0,0.0071792]
[1726686903679,0.25421328,60790.0,60757.0,0.25393234]
[1726686903926,0.8483227,60790.0,60789.0,0.002]
[1726686904163,0.822502,60790.0,60789.0,0.002]
[1726686904464,0.1645,60790.0,60789.0,0.002]
[1726686904735,0.61630112,60790.0,60789.0,0.002]
[1726686904988,0.59173896,60790.0,60789.0,0.002]
[1726686905293,0.822502,60790.0,60789.0,0.002]
[1726686905475,0.09820946,60790.0,60786.0,0.0024617]
[1726686905745,0.04910059,60790.0,60786.0,0.0024617]
[1726686905966,0.12276182,60794.0,60786.0,0.0024617]
[1726686905967,0.04910059,60794.0,60793.0,0.164492]
[1726686906192,0.008,60790.0,60789.0,0.329006]
[1726686906424,0.008,60790.0,60789.0,0.822515]
[1726686906657,0.07364327,60799.0,60787.0,0.03314917]
[1726686906658,0.04909551,60799.0,60787.0,0.03314917]
[1726686906902,0.02581346,60799.0,60787.0,0.44075186]
[1726686907143,0.07364327,60803.0,60793.0,0.328984]
[1726686907144,0.04909551,60803.0,60793.0,0.328984]
[1726686907381,0.04909551,60803.0,60788.0,0.1]
[1726686907382,0.04909551,60801.0,60788.0,0.1]
[1726686907625,0.04909551,60798.0,60791.0,0.164498]
[1726686907902,0.45167579,60802.0,60799.0,0.164476]
[1726686907903,0.04909512,60800.0,60799.0,0.164476]
[1726686908143,0.07364327,60802.0,60801.0,0.922352]
[1726686908144,0.04909512,60802.0,60801.0,0.922352]
[1726686908401,0.12273879,60804.0,60803.0,0.593396]
[1726686908640,0.12273879,60804.0,60803.0,0.922327]
[1726686908885,0.164415,60822.0,60817.0,0.164426]
[1726686909123,0.164415,60822.0,60818.0,0.0493289]
[1726686909124,0.164422,60819.0,60818.0,0.0493289]
[1726686909360,0.328809,60826.0,60804.0,0.1]
[1726686909361,0.164445,60811.0,60804.0,0.1]
[1726686909622,0.33121881,60820.0,60806.0,0.1]
[1726686909623,0.164437,60814.0,60806.0,0.1]
[1726686909860,0.42704603,60817.0,60799.0,0.3453986]
[1726686910096,0.1251176,60819.0,60799.0,0.3453986]
[1726686910097,0.07364327,60809.0,60799.0,0.0164476]
[1726686910335,0.328938,60802.0,60789.0,0.00164]
[1726686910588,0.07365701,60805.0,60801.0,0.164469]
[1726686910819,0.07365701,60805.0,60789.0,0.00164]
[1726686910820,0.07365701,60805.0,60793.0,0.32898]
[1726686911069,0.07365701,60805.0,60801.0,0.16447]
[1726686911070,0.164461,60805.0,60801.0,0.16447]
[1726686911313,0.32895,60800.0,60789.0,0.00164]
[1726686911543,0.00237881,60799.0,60794.0,0.164489]
[1726686911806,0.07365701,60801.0,60789.0,0.00164]
[1726686912041,0.07365701,60801.0,60793.0,0.32898]
[1726686912042,0.328943,60801.0,60793.0,0.32898]
[1726686912286,0.328943,60801.0,60789.0,0.10164]
[1726686912287,0.1645,60790.0,60789.0,0.10164]
[1726686912533,0.40261601,60798.0,60790.0,0.02041017]
[1726686912534,0.493494,60791.0,60790.0,0.02041017]
[1726686912781,0.42716835,60798.0,60789.0,0.00164]
[1726686912782,0.328982,60794.0,60789.0,0.00164]
[1726686913021,0.822502,60790.0,60789.0,0.00164]
[1726686913263,0.493501,60790.0,60789.0,0.00164]
[1726686913538,0.823502,60790.0,60789.0,0.00164]
[1726686913802,1.152503,60790.0,60789.0,0.00164]
[1726686914334,1.151559,60787.0,60786.0,0.0024617]
[1726686914616,1.91803826,60787.0,60786.0,0.0024617]
[1726686914892,2.20741013,60787.0,60786.0,2.312e-05]
[1726686915150,0.12273395,60788.0,60786.0,2.312e-05]
[1726686915483,0.09817687,60790.0,60786.0,2.312e-05]
[1726686915668,0.164498,60791.0,60787.0,0.03290611]
[1726686915931,0.009,60794.0,60787.0,0.03290611]
[1726686916201,0.009,60794.0,60793.0,0.493477]
[1726686916456,0.009,60794.0,60788.0,0.329007]
[1726686916696,0.328947,60801.0,60786.0,2.312e-05]
[1726686916697,0.164508,60787.0,60786.0,2.312e-05]
[1726686916941,0.51089719,60787.0,60786.0,2.312e-05]
[1726686917678,1.16893119,60787.0,60786.0,2.312e-05]
[1726686917681,1.87761886,60787.0,60786.0,2.312e-05]
[1726686917907,1.87761886,60787.0,60754.0,0.24676532]
[1726686917908,0.329075,60777.0,60754.0,0.24666532]
[1726686918215,0.002,60780.0,60753.0,0.00154]
[1726686918216,0.164568,60765.0,60753.0,0.00154]
[1726686918451,0.329129,60767.0,60758.0,0.329174]
[1726686918452,0.01737219,60764.0,60758.0,0.329174]
[1726686918723,0.01737219,60764.0,60753.0,0.00154]
[1726686918724,0.01737219,60763.0,60753.0,0.00154]
[1726686918974,0.04904583,60767.0,60753.0,0.00154]
[1726686918975,0.329188,60756.0,60753.0,0.00154]
[1726686919215,0.493794,60754.0,60753.0,0.00154]
[1726686919463,1.85426628,60754.0,60753.0,0.00154]
[1726686919728,1.85426628,60754.0,60753.0,0.00144]
[1726686919729,2.13641645,60754.0,60753.0,0.00144]
[1726686919987,2.13641645,60754.0,60747.0,0.00164]
[1726686919988,1.152298,60748.0,60747.0,0.00164]
[1726686920261,0.93618,60740.0,60739.0,0.00164]
[1726686920566,0.93618,60740.0,60728.0,0.00164]
[1726686920567,0.92322,60737.0,60728.0,0.00164]
[1726686920794,1.305508,60737.0,60728.0,0.00164]
[1726686921052,1.636895,60733.0,60728.0,0.00164]
[1726686921334,1.832689,60729.0,60728.0,0.00164]
[1726686921588,1.832689,60729.0,60727.0,0.00154]
[1726686921589,1.307679,60728.0,60727.0,0.00154]
[1726686922154,1.307679,60728.0,60725.0,0.001642]
[1726686922155,1.344718,60726.0,60725.0,0.001642]
[1726686922158,0.494193,60705.0,60696.0,0.0032332]
[1726686922429,0.823655,60705.0,60696.0,0.0032332]
[1726686922669,0.002,60717.0,60696.0,0.0032332]
[1726686922670,0.03,60727.0,60697.0,0.329504]
[1726686922900,0.164716,60711.0,60704.0,0.1692379]
[1726686923124,0.002,60726.0,60704.0,0.1692379]
[1726686923125,0.013,60729.0,60705.0,0.04987169]
[1726686923355,0.013,60729.0,60704.0,0.0045049]
[1726686923356,1.0141953,60720.0,60704.0,0.0045049]
[1726686923591,0.32943,60711.0,60704.0,0.0045049]
[1726686923815,0.00237881,60719.0,60697.0,0.329504]
[1726686923816,0.32944,60710.0,60697.0,0.329504]
[1726686924046,0.329387,60719.0,60696.0,0.0032332]
[1726686924047,0.164695,60719.0,60713.0,0.164709]
[1726686924276,0.329365,60723.0,60714.0,0.0164709]
[1726686924532,0.06,60736.0,60714.0,0.0164709]
[1726686924533,0.164693,60719.0,60714.0,0.0164709]
[1726686924744,0.329373,60722.0,60702.0,0.0034732]
[1726686924745,0.164697,60718.0,60711.0,0.164714]
[1726686924969,0.164691,60720.0,60712.0,0.164711]
[1726686925219,0.329376,60721.0,60712.0,0.164711]
[1726686925449,0.329376,60721.0,60704.0,0.1]
[1726686925450,0.00237881,60721.0,60704.0,0.1]
[1726686925680,0.002,60734.0,60704.0,0.1]
[1726686925681,0.1,60737.0,60709.0,0.43746226]
[1726686925938,0.164668,60728.0,60710.0,0.1]
[1726686926167,0.164648,60736.0,60726.0,0.329343]
[1726686926405,0.164648,60736.0,60705.0,0.04329422]
[1726686926406,0.006,60720.0,60719.0,1.667237]
[1726686926639,0.98834576,60747.0,60746.0,0.164619]
[1726686927132,0.98834576,60747.0,60735.0,0.1]
[1726686927133,0.32914,60765.0,60735.0,0.1]
[1726686927393,0.32914,60765.0,60760.0,0.16458]
[1726686927394,0.19039837,60765.0,60760.0,0.16458]
[1726686927630,0.98834576,60767.0,60741.0,0.03298]
[1726686927631,0.01707988,60764.0,60751.0,0.32921]
[1726686927867,0.329094,60773.0,60762.0,0.164575]
[1726686927868,0.329116,60769.0,60762.0,0.164575]
[1726686928144,0.02582758,60775.0,60763.0,0.0493745]
[1726686928145,0.01712316,60768.0,60763.0,0.0493745]
[1726686928408,0.01950197,60767.0,60748.0,0.023]
[1726686928610,0.002,60765.0,60749.0,0.002]
[1726686928868,0.329079,60776.0,60758.0,0.1]
[1726686929110,0.0031388,60778.0,60763.0,0.329146]
[1726686929111,0.006,60769.0,60763.0,0.329146]
[1726686929323,0.006,60769.0,60763.0,0.164573]
[1726686929324,0.01717461,60768.0,60763.0,0.164573]
[1726686929570,0.01717461,60768.0,60767.0,0.164563]
[1726686929872,0.01717461,60768.0,60767.0,0.329126]
[1726686930123,0.006,60769.0,60768.0,0.9228]
[1726686930365,0.006,60769.0,60768.0,1.58104]
[1726686930607,0.006,60769.0,60768.0,1.25192]
[1726686930845,0.0031388,60778.0,60777.0,0.493606]
[1726686931104,0.0031388,60778.0,60777.0,1.58921026]
[1726686931351,0.0031388,60778.0,60777.0,0.593606]
[1726686931605,0.0031388,60778.0,60777.0,0.922677]
[1726686931846,0.0031388,60778.0,60777.0,1.251748]
[1726686932072,0.0031388,60778.0,60777.0,1.01765306]
[1726686932529,0.0031388,60778.0,60777.0,1.34672406]
[1726686932794,0.0031388,60778.0,60777.0,1.01765306]
[1726686933031,0.0041388,60778.0,60777.0,1.02365306]
[1726686933512,0.0041388,60778.0,60777.0,0.006]
[1726686933740,0.0041388,60778.0,60777.0,0.828677]
[1726686933990,0.0531388,60778.0,60777.0,0.822677]
[1726686934226,0.0531388,60778.0,60777.0,1.151748]
[1726686934496,0.0541388,60778.0,60777.0,1.264748]
[1726686934722,0.000823,60787.0,60786.0,0.922557]
[1726686934941,0.000823,60787.0,60786.0,1.25158]
[1726686935399,0.000823,60787.0,60786.0,0.922557]
[1726686935633,0.000823,60787.0,60786.0,1.25158]
[1726686935854,0.000823,60787.0,60786.0,1.376738]
[1726686937268,0.001823,60787.0,60786.0,1.751741]
[1726686937614,0.006612,60808.0,60807.0,0.493363]
[1726686938091,0.006612,60808.0,60794.0,0.428979]
[1726686938092,0.006612,60808.0,60794.0,0.1]
[1726686938317,0.006612,60808.0,60796.0,0.24680186]
[1726686938543,0.006612,60808.0,60807.0,0.822272]
[1726686938994,0.006612,60808.0,60807.0,1.156181]
[1726686939252,0.006612,60808.0,60807.0,0.827272]
[1726686939478,0.006612,60808.0,60807.0,0.005]
[1726686939958,0.828872,60808.0,60807.0,0.005]
[1726686940175,0.164458,60806.0,60799.0,0.328951]
[1726686940451,0.164458,60806.0,60784.0,0.03298]
[1726686940452,0.006612,60808.0,60800.0,0.0328951]
[1726686940674,0.006612,60808.0,60796.0,0.004]
[1726686941129,0.006612,60808.0,60790.0,0.002]
[1726686941130,0.006612,60808.0,60807.0,0.164454]
[1726686941369,0.007612,60808.0,60807.0,0.164454]
[1726686941595,0.007612,60808.0,60798.0,0.1]
[1726686941830,0.007612,60808.0,60798.0,0.164478]
[1726686942046,0.007612,60808.0,60780.0,0.359053]
[1726686942047,0.164472,60801.0,60799.0,0.0164478]
[1726686942302,0.00237881,60800.0,60796.0,0.002]
[1726686942531,0.164481,60797.0,60796.0,0.002]
[1726686942751,0.00237881,60805.0,60796.0,0.002]
[1726686942752,0.164481,60798.0,60796.0,0.002]
[1726686942978,0.006612,60808.0,60796.0,0.002]
[1726686943208,0.33789581,60808.0,60801.0,0.164469]
[1726686943436,0.33789581,60808.0,60802.0,0.0164469]
[1726686943437,0.00899081,60808.0,60802.0,0.0164469]
[1726686943672,0.00899081,60808.0,60798.0,0.328953]
[1726686943673,0.006612,60808.0,60798.0,0.328953]
[1726686943940,0.006612,60808.0,60796.0,0.002]
[1726686944166,0.00237881,60807.0,60782.0,0.03298]
[1726686944378,0.00237881,60807.0,60797.0,0.16448]
[1726686944379,0.164472,60801.0,60797.0,0.16448]
[1726686944836,0.008258,60808.0,60783.0,0.03298]
[1726686944837,0.008258,60808.0,60798.0,0.001]
[1726686945131,0.008258,60808.0,60807.0,0.164454]
[1726686945333,0.008258,60808.0,60807.0,0.0164454]
[1726686945569,0.337163,60808.0,60801.0,0.16447]
[1726686945811,0.328909,60807.0,60801.0,0.16447]
[1726686946054,0.328909,60807.0,60798.0,0.001]
[1726686946055,0.008258,60808.0,60807.0,0.493363]
[1726686946298,0.008258,60808.0,60801.0,0.328941]
[1726686946530,0.33128781,60807.0,60802.0,0.164467]
[1726686946751,0.328931,60803.0,60779.0,0.002]
[1726686946984,0.00237881,60807.0,60774.0,0.524884]
[1726686946985,0.00237881,60802.0,60792.0,0.328985]
[1726686947225,0.00237881,60802.0,60775.0,0.03298]
[1726686947470,1.151332,60799.0,60798.0,0.001]
[1726686947742,0.06,60802.0,60761.0,0.43746226]
[1726686947980,0.06,60802.0,60760.0,0.83806]
[1726686947981,0.1,60800.0,60772.0,0.98680964]
[1726686948236,0.1,60800.0,60763.0,0.0101245]
[1726686948237,0.1,60800.0,60779.0,0.002]
[1726686948472,0.1,60797.0,60764.0,0.37870921]
[1726686948703,0.164527,60781.0,60777.0,0.164534]
[1726686948948,0.00237881,60796.0,60765.0,1.07658301]
[1726686948949,0.329044,60782.0,60765.0,0.08977337]
[1726686949195,0.164558,60769.0,60764.0,0.21414121]
[1726686949448,0.1885,60784.0,60764.0,0.04957121]
[1726686949688,0.329051,60781.0,60764.0,0.04957121]
[1726686949906,0.164532,60779.0,60769.0,0.329111]
[1726686950144,0.123,60795.0,60764.0,0.00019811]
[1726686950387,0.164527,60780.0,60779.0,0.001]
[1726686950603,0.164532,60779.0,60773.0,0.164544]
[1726686950834,0.13281191,60795.0,60775.0,0.16454]
[1726686950835,0.329038,60784.0,60775.0,0.16454]
[1726686951044,0.329038,60784.0,60769.0,0.32911]
[1726686951045,0.002,60781.0,60780.0,0.164527]
[1726686951300,0.002,60781.0,60764.0,0.10019811]
[1726686951550,0.002,60781.0,60779.0,0.002]
[1726686951799,0.002,60781.0,60774.0,0.329084]
[1726686951800,0.329065,60779.0,60764.0,0.10019811]
[1726686952032,0.1,60792.0,60764.0,0.10019811]
[1726686952033,0.1,60792.0,60765.0,0.01001981]
[1726686952253,0.1843,60796.0,60769.0,0.43746226]
[1726686952484,0.00237881,60795.0,60777.0,0.164534]
[1726686952727,0.164495,60792.0,60782.0,0.329042]
[1726686953009,0.1843,60796.0,60770.0,0.1032906]
[1726686953010,0.328977,60795.0,60783.0,0.0329042]
[1726686953217,0.328964,60797.0,60784.0,0.329033]
[1726686953429,0.328964,60797.0,60771.0,0.00329018]
[1726686953430,0.328987,60793.0,60782.0,0.329042]
[1726686953644,0.164501,60790.0,60784.0,0.164515]
[1726686953874,0.164501,60790.0,60770.0,0.462085]
[1726686953875,0.328992,60792.0,60785.0,0.0493557]
[1726686954324,0.328992,60792.0,60770.0,0.13298]
[1726686954325,0.1,60804.0,60779.0,0.003]
[1726686954327,0.164527,60780.0,60779.0,0.003]
[1726686954550,0.822637,60780.0,60779.0,0.003]
[1726686954783,1.480747,60780.0,60779.0,0.003]
[1726686955007,1.480747,60780.0,60764.0,0.00019811]
[1726686955008,0.493704,60765.0,60764.0,0.00019811]
[1726686955237,0.164568,60765.0,60764.0,0.00019811]
[1726686955704,0.164568,60765.0,60764.0,0.01667592]
[1726686955705,0.493704,60765.0,60764.0,0.01667592]
[1726686955922,0.493704,60765.0,60764.0,0.00019811]
[1726686956172,0.311,60774.0,60764.0,0.00019811]
[1726686956173,0.164567,60766.0,60764.0,0.00019811]
[1726686956419,0.164567,60766.0,60754.0,0.000823]
[1726686956420,0.164595,60755.0,60754.0,0.000823]
[1726686956897,0.164595,60755.0,60722.0,0.000822]
[1726686956898,0.023,60753.0,60726.0,0.24685466]
[1726686957141,0.03237881,60752.0,60726.0,0.24685466]
[1726686957384,0.03237881,60752.0,60722.0,0.000822]
[1726686957385,0.164682,60723.0,60722.0,0.000822]
[1726686957621,0.494046,60723.0,60722.0,0.000822]
[1726686957866,0.164682,60723.0,60722.0,0.000822]
[1726686958113,0.164666,60729.0,60722.0,0.000822]
[1726686958361,0.02584416,60734.0,60726.0,0.001]
[1726686958607,0.02584416,60734.0,60722.0,0.000822]
[1726686958608,0.329326,60730.0,60722.0,0.000822]
[1726686958850,0.02584416,60734.0,60722.0,0.011822]
[1726686958851,0.001,60723.0,60722.0,0.011822]
[1726686959088,0.165682,60723.0,60722.0,0.0624948]
[1726686959329,0.165682,60723.0,60722.0,0.011822]
[1726686959330,0.001,60723.0,60722.0,0.011822]
[1726686959825,0.35515216,60734.0,60722.0,0.011822]
[1726686959826,0.98783319,60740.0,60732.0,0.03]
[1726686960068,0.98783319,60759.0,60740.0,0.1]
[1726686960314,0.24929442,60758.0,60740.0,0.164634]
[1726686960585,0.33155581,60758.0,60741.0,0.164631]
[1726686960836,0.44941624,60770.0,60724.0,0.43746226]
[1726686960837,0.00237881,60757.0,60724.0,0.43746226]
[1726686961095,0.164656,60733.0,60724.0,0.13298]
[1726686961336,0.3007,60747.0,60725.0,0.00329312]
[1726686961583,0.3007,60747.0,60724.0,0.57044226]
[1726686961584,0.00237881,60746.0,60724.0,0.57044226]
[1726686961816,0.00237881,60745.0,60731.0,0.1]
[1726686962052,0.00237881,60745.0,60732.0,0.0264662]
[1726686962053,0.329252,60744.0,60732.0,0.0264662]
[1726686962308,0.329278,60739.0,60732.0,0.0264662]
[1726686962560,0.329278,60739.0,60723.0,0.362343]
[1726686962561,0.329267,60741.0,60723.0,0.03298]
[1726686962807,0.3225,60759.0,60741.0,0.329266]
[1726686963073,0.164609,60750.0,60743.0,0.164627]
[1726686963355,0.164609,60750.0,60733.0,0.329305]
[1726686963356,1.31679158,60768.0,60755.0,0.32919]
[1726686963605,1.31679158,60768.0,60747.0,0.1]
[1726686963606,0.169588,60758.0,60747.0,0.1]
[1726686963850,0.3306,60770.0,60748.0,0.0429238]
[1726686964106,0.3306,60770.0,60761.0,0.329155]
[1726686964346,0.3306,60770.0,60759.0,0.164584]
[1726686964583,0.3306,60770.0,60748.0,0.04621583]
[1726686964584,0.3306,60770.0,60757.0,0.164589]
[1726686964823,0.164578,60762.0,60753.0,0.329198]
[1726686965075,0.164576,60763.0,60757.0,0.164588]
[1726686965333,0.3306,60770.0,60748.0,0.0429238]
[1726686965334,0.164603,60752.0,60748.0,0.0429238]
[1726686965588,0.048684,60768.0,60747.0,0.001]
[1726686965589,0.1,60768.0,60747.0,0.001]
[1726686965842,0.03,60765.0,60747.0,0.001]
[1726686966087,0.493842,60748.0,60747.0,0.001]
[1726686966337,1.152298,60748.0,60747.0,0.001]
[1726686966834,0.03,60761.0,60729.0,0.03298]
[1726686967082,0.00437881,60759.0,60734.0,0.000823]
[1726686967324,0.82307,60748.0,60747.0,0.001]
[1726686967564,0.023,60752.0,60734.0,0.000823]
[1726686967807,0.164649,60735.0,60734.0,0.000823]
[1726686968087,0.003,60748.0,60734.0,0.000823]
[1726686968088,0.00537881,60748.0,60734.0,0.000823]
[1726686968338,0.823247,60735.0,60734.0,0.000823]
[1726686969555,1.152546,60735.0,60734.0,0.000823]
[1726686970051,1.152546,60735.0,60722.0,0.000822]
[1726686970052,0.03,60733.0,60722.0,0.000822]
[1726686970299,1.152774,60723.0,60722.0,0.000822]
[1726686970551,0.03,60733.0,60722.0,0.000822]
[1726686970552,0.02584354,60733.0,60722.0,0.000822]
[1726686970790,0.1971,60734.0,60722.0,0.000822]
[1726686970791,0.00237881,60732.0,60722.0,0.000822]
[1726686971034,0.164682,60723.0,60722.0,0.000822]
[1726686971304,0.494046,60723.0,60722.0,0.000822]
[1726686971548,1.2021786,60723.0,60722.0,0.000822]
[1726686971826,1.6635426,60723.0,60722.0,0.000822]
[1726686972055,1.6635426,60723.0,60696.0,0.0032332]
[1726686972056,0.494209,60703.0,60696.0,0.0032332]
[1726686972296,0.823682,60703.0,60696.0,0.0032332]
[1726686972773,0.002,60718.0,60696.0,0.0032332]
[1726686972774,0.37154795,60723.0,60697.0,0.329502]
[1726686973023,0.1,60721.0,60700.0,0.329486]
[1726686973262,0.34154795,60723.0,60704.0,0.164733]
[1726686973263,0.164717,60710.0,60704.0,0.164733]
[1726686973495,0.3294,60717.0,60704.0,0.164733]
[1726686973496,0.329399,60717.0,60704.0,0.0500816]
[1726686973734,0.329424,60713.0,60701.0,0.329483]
[1726686973974,0.3157,60723.0,60708.0,0.329444]
[1726686974210,0.3328,60735.0,60703.0,0.025]
[1726686974456,0.04821315,60741.0,60707.0,0.1]
[1726686974457,0.011,60721.0,60707.0,0.1]
[1726686974764,0.011,60721.0,60720.0,0.59407]
[1726686975029,0.011,60721.0,60720.0,1.74969926]
[1726686975288,0.011,60721.0,60720.0,1.80567926]
[1726686975621,0.011,60721.0,60720.0,1.78267926]
[1726686975894,0.9883539,60743.0,60742.0,0.493891]
[1726686976133,0.9883539,60743.0,60735.0,0.1]
[1726686976404,0.9883539,60759.0,60729.0,0.1]
[1726686976405,0.329188,60756.0,60736.0,0.04622467]
[1726686976664,0.164624,60745.0,60729.0,0.03298]
[1726686976929,0.00237881,60744.0,60739.0,0.164637]
[1726686977174,0.00237881,60744.0,60729.0,0.03298]
[1726686977175,0.164634,60741.0,60729.0,0.03298]
[1726686977406,4e-05,60750.0,60735.0,0.004]
[1726686977656,0.001,60743.0,60738.0,0.16464]
[1726686977897,0.001,60743.0,60735.0,0.004]
[1726686977898,4e-05,60750.0,60739.0,0.049793]
[1726686978168,4e-05,60750.0,60733.0,0.329307]
[1726686978402,4e-05,60750.0,60727.0,0.47044226]
[1726686978403,0.16464,60739.0,60727.0,0.03298]
[1726686978650,0.00241881,60750.0,60727.0,0.03298]
[1726686978651,4e-05,60750.0,60727.0,0.03298]
[1726686978929,4e-05,60750.0,60720.0,0.059407]
[1726686978930,0.00241881,60750.0,60721.0,0.03298]
[1726686979166,0.164638,60740.0,60734.0,0.164651]
[1726686979454,0.164638,60740.0,60735.0,0.0823282]
[1726686979719,0.164638,60740.0,60729.0,0.006]
[1726686979720,0.164648,60736.0,60724.0,0.164678]
[1726686979971,0.164626,60744.0,60733.0,0.164655]
[1726686980236,0.03,60760.0,60730.0,0.329323]
[1726686980237,0.164634,60741.0,60730.0,0.264663]
[1726686980502,0.329212,60752.0,60730.0,0.1]
[1726686980738,0.329212,60752.0,60731.0,0.01]
[1726686980739,0.001646,60752.0,60731.0,0.01]
[1726686981011,0.001,60740.0,60734.0,0.011]
[1726686981522,0.164649,60735.0,60734.0,0.011]
[1726686981822,0.823247,60735.0,60734.0,0.011]
[1726686982150,1.457046,60735.0,60734.0,0.011]
[1726686982307,1.457046,60735.0,60704.0,0.329464]
[1726686982308,0.823437,60721.0,60704.0,0.329464]
[1726686982519,0.3045,60735.0,60702.0,0.036612]
[1726686982764,0.3045,60735.0,60730.0,0.005]
[1726686982765,0.329321,60731.0,60730.0,0.005]
[1726686982997,0.329321,60731.0,60713.0,0.03298]
[1726686982998,0.164684,60723.0,60713.0,0.329418]
[1726686983264,0.00237881,60735.0,60716.0,0.3294]
[1726686983265,0.164677,60725.0,60716.0,0.3294]
[1726686983501,0.02583958,60746.0,60720.0,0.0338453]
[1726686983502,0.00237881,60724.0,60720.0,0.0338453]
[1726686983739,0.329339,60728.0,60720.0,0.000823]
[1726686983977,0.329339,60728.0,60720.0,0.002823]
[1726686983978,0.164679,60724.0,60720.0,0.002823]
[1726686984246,0.329355,60725.0,60720.0,0.000823]
[1726686984506,0.2470193,60738.0,60720.0,0.0021055]
[1726686984507,0.329361,60724.0,60720.0,0.0021055]
[1726686984738,0.494062,60721.0,60720.0,0.0021055]
[1726686984976,0.329286,60738.0,60720.0,0.0021055]
[1726686984977,0.04010011,60746.0,60720.0,0.1667945]
[1726686985210,0.2470193,60738.0,60721.0,0.164686]
[1726686985447,0.01010011,60746.0,60725.0,0.329352]
[1726686985689,0.001,60725.0,60720.0,0.0091055]
[1726686986215,0.002,60751.0,60720.0,0.0091055]
[1726686986216,0.329241,60746.0,60723.0,0.1]
[1726686986456,4e-05,60750.0,60728.0,0.03298]
[1726686986693,4e-05,60750.0,60745.0,0.164621]
[1726686986933,4e-05,60750.0,60747.0,0.164617]
[1726686987177,4e-05,60750.0,60746.0,0.0493873]
[1726686987178,0.493851,60747.0,60746.0,0.0493873]
[1726686987421,4e-05,60750.0,60746.0,0.164618]
[1726686987650,0.164623,60745.0,60735.0,0.1]
[1726686987876,0.329229,60748.0,60741.0,0.164632]
[1726686988127,4e-05,60750.0,60742.0,0.329261]
[1726686988363,4e-05,60750.0,60746.0,0.164619]
[1726686988609,0.164614,60748.0,60747.0,0.0823133]
[1726686988859,4e-05,60750.0,60737.0,0.1]
[1726686989104,4e-05,60750.0,60744.0,0.329247]
[1726686989344,4e-05,60750.0,60749.0,0.493834]
[1726686989583,4e-05,60750.0,60749.0,0.823057]
[1726686989861,4e-05,60750.0,60749.0,0.1152307]
[1726686990100,4e-05,60750.0,60747.0,0.012]
[1726686990368,4e-05,60750.0,60735.0,0.20105572]
[1726686990369,4e-05,60750.0,60749.0,0.823057]
[1726686990602,4e-05,60750.0,60749.0,0.014]
[1726686990851,0.49624581,60750.0,60749.0,0.014]
[1726686991125,1.15468181,60750.0,60749.0,0.014]
[1726686991607,1.48389981,60750.0,60749.0,0.014]
[1726686991872,1.15468181,60750.0,60749.0,0.014]
[1726686992126,0.164644,60737.0,60733.0,0.0012825]
[1726686992407,0.329238,60747.0,60733.0,0.03434375]
[1726686992625,0.001686,60750.0,60741.0,0.164631]
[1726686992871,0.001686,60750.0,60740.0,0.329271]
[1726686992872,0.329229,60748.0,60740.0,0.329271]
[1726686993136,0.001686,60750.0,60749.0,0.499834]
[1726686993389,0.001686,60750.0,60749.0,1.581503]
[1726686993635,0.001686,60750.0,60749.0,1.76758858]
[1726686993890,0.24691561,60770.0,60769.0,1.151902]
[1726686994128,0.24691561,60770.0,60769.0,0.822787]
[1726686994386,0.24691561,60770.0,60759.0,0.1]
[1726686994387,0.002922,60781.0,60765.0,0.329134]
[1726686994625,0.002922,60781.0,60767.0,0.16456]
[1726686994626,0.16455,60772.0,60767.0,0.16456]
[1726686994957,0.164555,60770.0,60768.0,0.016456]
[1726686995128,0.002922,60781.0,60768.0,0.016456]
[1726686995129,0.493672,60769.0,60768.0,0.016456]
[1726686995391,0.002922,60781.0,60769.0,0.329114]
[1726686995631,0.002922,60781.0,60777.0,0.164533]
[1726686995897,0.002922,60781.0,60780.0,0.493582]
[1726686996135,0.002922,60781.0,60780.0,0.822637]
[1726686997125,0.002922,60781.0,60780.0,0.493582]
[1726686997383,0.002922,60781.0,60780.0,0.92974143]
[1726686998103,0.002922,60781.0,60780.0,0.014]
[1726686998372,0.167447,60781.0,60780.0,0.014]
[1726686998696,0.329071,60777.0,60768.0,0.1]
[1726686998928,0.002922,60781.0,60780.0,0.014]
[1726686999157,0.002922,60781.0,60777.0,0.329066]
[1726686999388,0.002922,60781.0,60778.0,0.0329066]
[1726686999647,0.002922,60781.0,60780.0,0.014]
[1726686999869,0.002922,60781.0,60757.0,0.43746226]
[1726687000102,0.329074,60777.0,60768.0,0.178558]
[1726687000328,0.002922,60781.0,60761.0,0.03298]
[1726687000596,0.02582226,60778.0,60774.0,0.329086]
[1726687000838,0.002922,60781.0,60780.0,0.493582]
[1726687001072,0.002922,60781.0,60780.0,0.822637]
[1726687001389,0.002922,60781.0,60780.0,1.151692]
[1726687001640,0.002922,60781.0,60780.0,0.822637]
[1726687002146,0.002922,60781.0,60778.0,0.16453]
[1726687002387,0.002922,60781.0,60780.0,0.004]
[1726687002655,0.002922,60781.0,60779.0,0.05265126]
[1726687002922,0.002922,60781.0,60780.0,0.506582]
[1726687003193,0.002922,60781.0,60780.0,0.164527]